bitfinex-derivatives/quotes_ETHF0:USTF0_20250505
["timestamp","ask_amount","ask_price","bid_price","bid_amount"]
[1746417480900,4.84484,1797.1,1797.0,9.2586]
[1746417481098,4.84484,1797.1,1797.0,6.0508]
[1746417481987,6.42464,1797.1,1797.0,6.0508]
[1746417482995,5.3118,1797.1,1796.9,0.8002]
[1746417483192,1.11297,1796.9,1796.8,6.7248]
[1746417483800,1.11295,1797.0,1796.8,7.83781]
[1746417483992,1.11295,1797.0,1796.8,10.33061]
[1746417484190,4.84495,1797.0,1796.9,1.6695]
[1746417485600,3.732,1797.0,1796.9,1.6695]
[1746417485901,4.84491,1797.0,1796.9,1.6695]
[1746417489907,3.732,1797.0,1796.8,7.5481]
[1746417490101,1.5984,1796.9,1796.8,7.5481]
[1746417490306,2.71137,1796.9,1796.8,9.1879]
[1746417490608,1.5984,1796.9,1796.8,10.30093]
[1746417491104,5.3304,1796.9,1796.8,10.30093]
[1746417491606,6.44337,1796.9,1796.8,10.30093]
[1746417492608,6.44337,1796.9,1796.8,9.1879]
[1746417492908,6.44337,1796.9,1796.8,10.30093]
[1746417494108,6.44337,1796.9,1796.8,9.1879]
[1746417494608,6.44337,1796.9,1796.8,10.30093]
[1746417496710,6.44337,1796.9,1796.8,7.5481]
[1746417497002,1.11315,1796.6,1796.5,2.5907]
[1746417497208,1.11315,1796.6,1796.5,6.1077]
[1746417498110,4.84515,1796.6,1796.5,3.517]
[1746417498910,1.11322,1796.5,1796.4,7.43091926]
[1746417499098,4.34682,1796.5,1796.4,7.43091926]
[1746417499910,1.11334,1796.3,1796.2,3.517]
[1746417500112,4.84534,1796.3,1796.2,3.517]
[1746417502323,1.11346,1796.1,1796.0,10.63871926]
[1746417503118,3.67286,1796.1,1796.0,10.63871926]
[1746417503919,3.67286,1796.1,1796.0,3.2078]
[1746417509825,1.11353,1796.0,1795.9,4.388]
[1746417510027,2.84773,1796.0,1795.9,4.388]
[1746417511326,2.84773,1796.0,1795.9,6.0123]
[1746417513625,2.84773,1796.0,1795.9,3.531]
[1746417514120,2.84773,1796.0,1795.6,4.32153]
[1746417514121,1.7342,1796.0,1795.6,3.2078]
[1746417514327,6.82632,1796.1,1795.6,3.2078]
[1746417514328,1.11369,1795.8,1795.6,8.4225]
[1746417514525,1.11369,1795.8,1795.7,1.6827]
[1746417514730,2.72529,1795.8,1795.7,1.6827]
[1746417519528,1.11369,1795.8,1795.7,1.6827]
[1746417530541,1.11369,1795.8,1795.7,2.5405]
[1746417532532,2.80519,1795.8,1795.7,2.5405]
[1746417541348,2.78429,1795.7,1795.2,3.2078]
[1746417541555,1.11396,1795.3,1795.2,3.2078]
[1746417541853,1.11396,1795.3,1795.2,6.7298]
[1746417543045,1.11396,1795.3,1795.2,8.4686]
[1746417548050,2.78286,1795.3,1795.2,8.4686]
[1746417549655,2.78286,1795.3,1795.2,6.7298]
[1746417549855,3.57866,1795.3,1795.2,6.7298]
[1746417551145,3.57866,1795.3,1795.2,3.522]
[1746417555152,1.11427,1794.8,1794.7,7.43091926]
[1746417555354,4.32207,1794.8,1794.7,7.43091926]
[1746417555760,4.32207,1794.8,1794.7,8.26071926]
[1746417556461,1.11427,1794.8,1794.7,8.26071926]
[1746417558055,1.11427,1794.8,1794.7,0.8298]
[1746417558957,1.11427,1794.8,1794.7,1.6992]
[1746417559160,1.11427,1794.8,1794.7,5.4312]
[1746417560757,1.11425,1794.9,1794.7,5.4312]
[1746417560964,1.11425,1794.9,1794.8,1.6114]
[1746417561149,1.11425,1794.9,1794.8,5.3434]
[1746417562660,1.11418,1795.0,1794.8,5.3434]
[1746417562862,1.11418,1795.0,1794.9,1.6962]
[1746417564059,1.11418,1795.0,1794.9,5.4282]
[1746417568157,1.11418,1795.0,1794.9,1.6962]
[1746417568663,2.81753,1795.1,1794.9,2.81039]
[1746417568963,1.11415,1795.0,1794.9,1.6962]
[1746417569157,1.11412,1795.1,1794.9,6.54241]
[1746417569556,1.11412,1795.1,1795.0,1.7423]
[1746417569757,1.11412,1795.1,1795.0,2.85645]
[1746417570153,1.11412,1795.1,1795.0,6.58845]
[1746417570356,1.11412,1795.1,1795.0,10.13745]
[1746417570861,1.11412,1795.1,1795.0,9.0233]
[1746417577169,1.11412,1795.1,1795.0,5.2913]
[1746417577668,1.6534,1795.2,1795.0,6.40543]
[1746417577669,2.76746,1795.2,1795.0,6.40543]
[1746417577869,4.32181,1795.3,1795.1,2.82658]
[1746417578170,1.11401,1795.3,1795.2,1.7125]
[1746417578363,2.76111,1795.3,1795.2,1.7125]
[1746417578972,3.2078,1795.5,1795.2,1.7125]
[1746417579169,1.11395,1795.4,1795.2,6.5585]
[1746417579467,2.76105,1795.4,1795.3,1.7125]
[1746417581068,2.76105,1795.4,1795.3,5.4445]
[1746417582276,2.76105,1795.4,1795.3,1.7125]
[1746417583572,1.11412,1795.1,1794.9,3.732]
[1746417583769,1.11412,1795.1,1795.0,0.8479]
[1746417583968,1.11412,1795.1,1795.0,2.4854]
[1746417584274,1.11412,1795.1,1795.0,6.2174]
[1746417588085,1.11412,1795.1,1795.0,2.4854]
[1746417588880,1.11415,1795.0,1794.9,0.8685]
[1746417589081,1.11415,1795.0,1794.9,5.447]
[1746417589281,1.11415,1795.0,1794.9,7.1437]
[1746417590782,1.11411,1795.1,1794.9,7.1437]
[1746417591281,1.11411,1795.1,1795.0,1.6967]
[1746417592179,1.11411,1795.1,1795.0,5.4287]
[1746417595589,2.75915,1795.2,1795.0,5.4287]
[1746417595782,2.75915,1795.2,1795.0,6.54283]
[1746417596083,1.11405,1795.2,1795.0,6.54283]
[1746417601693,5.15531,1795.3,1795.1,1.11408]
[1746417602185,1.11402,1795.2,1795.1,2.77318]
[1746417602379,1.11402,1795.2,1795.1,1.6591]
[1746417603385,1.11408,1795.1,1795.0,3.732]
[1746417603683,4.0413,1795.3,1795.0,3.732]
[1746417603980,7.43449009,1795.6,1795.2,3.2078]
[1746417604184,7.43449009,1795.6,1795.5,1.11384]
[1746417604583,7.43449009,1795.6,1795.5,3.48094]
[1746417604985,7.43449009,1795.6,1795.5,2.3671]
[1746417605188,8.54826009,1795.6,1795.5,6.0991]
[1746417606086,16.75606009,1795.6,1795.0,3.2078]
[1746417606283,1.11407,1795.2,1795.0,11.03412]
[1746417606488,3.2078,1795.4,1795.2,11.12799273]
[1746417606691,1.11396,1795.3,1795.2,11.12799273]
[1746417607779,6.11396,1795.3,1795.2,11.12799273]
[1746417607986,7.78156,1795.3,1795.2,11.12799273]
[1746417608291,2.78156,1795.3,1795.2,11.12799273]
[1746417609092,1.6676,1795.3,1795.0,6.7598]
[1746417609291,4.41895,1795.2,1795.0,6.7598]
[1746417609594,1.6676,1795.1,1795.0,6.7598]
[1746417609787,5.824,1795.4,1795.0,6.7598]
[1746417609986,9.10209009,1795.5,1795.3,1.11391]
[1746417610291,9.10209009,1795.5,1795.4,3.2848]
[1746417610987,10.21593009,1795.5,1795.4,3.2848]
[1746417611393,10.21593009,1795.5,1795.4,1.6316]
[1746417611794,10.21593009,1795.5,1795.4,0.8097]
[1746417612094,2.78144,1795.5,1795.4,0.8097]
[1746417612295,1.6676,1795.5,1795.4,0.8097]
[1746417613291,9.0318,1795.8,1795.4,0.8097]
[1746417613492,2.81312,1795.7,1795.5,0.8561]
[1746417613694,1.6994,1795.6,1795.5,2.5281]
[1746417613895,2.81317,1795.6,1795.5,2.5281]
[1746417614295,2.81317,1795.6,1795.5,0.8561]
[1746417614689,1.11384,1795.5,1795.3,3.552]
[1746417614889,2.4937,1795.5,1795.3,4.66595]
[1746417615090,2.4937,1795.5,1795.4,1.672]
[1746417615594,3.60754,1795.5,1795.4,1.672]
[1746417616598,2.4937,1795.5,1795.4,1.672]
[1746417617000,3.60754,1795.5,1795.4,1.672]
[1746417617599,2.81324,1795.5,1795.4,1.672]
[1746417618896,1.1139,1795.4,1795.3,3.552]
[1746417619099,4.4567,1795.4,1795.3,3.552]
[1746417619499,1.11396,1795.3,1795.2,3.3031]
[1746417619807,1.7358,1795.3,1795.2,3.3031]
[1746417619997,1.7358,1795.3,1795.2,4.41712]
[1746417620396,1.7358,1795.3,1795.2,3.3031]
[1746417620601,2.84976,1795.3,1795.2,3.3031]
[1746417621100,1.11402,1795.2,1795.1,3.2078]
[1746417621407,1.11408,1795.1,1795.0,4.66615]
[1746417621704,1.11408,1795.1,1795.0,5.1906]
[1746417621895,2.84988,1795.2,1795.0,5.1906]
[1746417622096,1.11408,1795.1,1795.0,3.552]
[1746417622402,1.11408,1795.1,1794.8,9.91061961]
[1746417622403,1.11421,1794.9,1794.8,9.91061961]
[1746417622804,2.4714,1795.0,1794.8,9.91061961]
[1746417622998,2.79545,1795.0,1794.8,9.91061961]
[1746417623199,2.79545,1795.0,1794.9,1.575]
[1746417627100,1.6813,1795.0,1794.9,1.575]
[1746417627810,2.79545,1795.0,1794.9,1.575]
[1746417629110,1.6813,1795.0,1794.9,2.68921]
[1746417629409,2.79545,1795.0,1794.9,1.575]
[1746417629607,1.96082,1795.1,1794.9,2.68921]
[1746417629809,1.96082,1795.1,1795.0,0.8557]
[1746417630005,3.55546,1795.2,1795.0,3.62345]
[1746417630211,1.11407,1795.2,1795.1,1.11408]
[1746417630406,1.11407,1795.2,1795.1,2.4487]
[1746417630605,1.11407,1795.2,1795.1,3.56278]
[1746417631012,9.4456,1795.3,1795.1,3.56278]
[1746417631313,9.4456,1795.3,1795.2,1.6536]
[1746417631707,8.5893,1795.3,1795.2,2.76762]
[1746417631904,4.32174,1795.4,1795.2,2.76762]
[1746417632106,4.32174,1795.4,1795.2,2.76758]
[1746417632107,4.32173,1795.4,1795.2,2.76758]
[1746417632315,4.32173,1795.4,1795.3,2.5647]
[1746417634314,6.00153,1795.4,1795.3,2.5647]
[1746417637619,2.79373,1795.4,1795.3,2.5647]
[1746417638420,2.79373,1795.4,1795.3,3.67866]
[1746417638620,2.79373,1795.4,1795.3,2.5647]
[1746417642733,6.00153,1795.4,1795.3,2.5647]
[1746417643830,4.8876,1795.4,1795.1,0.7951]
[1746417644027,1.11402,1795.2,1795.1,0.7951]
[1746417644428,3.5481,1795.3,1795.1,1.90918]
[1746417644730,3.5481,1795.3,1795.1,2.4159]
[1746417644933,1.11402,1795.2,1795.1,2.4159]
[1746417645231,2.70172,1795.2,1795.1,2.4159]
[1746417648534,1.11408,1795.1,1795.0,4.371]
[1746417648733,3.56848,1795.1,1795.0,3.573]
[1746417653038,1.11415,1795.0,1794.9,2.5083]
[1746417653239,2.85365,1795.0,1794.9,2.5083]
[1746417654741,1.11421,1794.9,1794.8,0.8025]
[1746417655041,1.11421,1794.9,1794.8,1.6214]
[1746417655042,2.85371,1794.9,1794.8,1.6214]
[1746417655635,2.85371,1794.9,1794.8,3.2538]
[1746417657440,6.06151,1794.9,1794.8,3.2538]
[1746417658341,2.85371,1794.9,1794.8,3.2538]
[1746417659545,1.11421,1794.9,1794.8,3.2538]
[1746417661547,1.11421,1794.9,1794.8,4.36807]
[1746417661739,1.11421,1794.9,1794.8,3.2538]
[1746417664649,1.11421,1794.9,1794.8,4.36807]
[1746417665048,1.11421,1794.9,1794.8,3.2538]
[1746417665348,1.11421,1794.9,1794.8,6.9858]
[1746417665540,1.11421,1794.9,1794.8,8.10007]
[1746417666342,1.6651,1795.0,1794.8,6.9858]
[1746417666543,2.7793,1795.0,1794.9,1.6986]
[1746417666951,1.1142,1795.0,1794.9,1.6986]
[1746417667341,3.5374,1795.1,1794.9,1.6986]
[1746417667841,3.53738,1795.1,1795.0,0.8043]
[1746417668352,3.53738,1795.1,1795.0,2.5373]
[1746417668650,1.11404,1795.2,1795.1,1.11408]
[1746417668851,1.11404,1795.2,1795.1,3.71598]
[1746417669549,11.7637,1795.3,1795.1,3.71598]
[1746417669749,11.7637,1795.3,1795.2,2.84702]
[1746417670046,8.28419009,1795.4,1795.3,1.11396]
[1746417670247,2.73175,1795.5,1795.3,2.573]
[1746417670553,7.43449009,1795.6,1795.5,1.11384]
[1746417671152,7.43449009,1795.6,1795.5,6.54854]
[1746417673354,1.11365,1795.8,1795.6,1.11372]
[1746417673553,2.69315,1795.8,1795.7,1.7027]
[1746417674252,1.5795,1795.8,1795.7,1.7027]
[1746417674548,2.69315,1795.8,1795.7,1.7027]
[1746417674947,1.11361,1795.9,1795.7,2.81641]
[1746417675553,3.63107,1796.0,1795.8,1.11365]
[1746417675755,1.11359,1795.9,1795.8,3.58655]
[1746417675947,1.11359,1795.9,1795.8,2.4729]
[1746417676146,2.78839,1795.9,1795.8,2.4729]
[1746417676951,2.78839,1795.9,1795.8,3.58655]
[1746417677351,2.78839,1795.9,1795.8,2.4729]
[1746417677854,1.6748,1795.9,1795.8,3.58655]
[1746417679462,1.11367,1795.8,1795.6,5.51543]
[1746417679655,1.11367,1795.8,1795.7,1.11371]
[1746417679859,1.11367,1795.8,1795.6,5.51543]
[1746417680055,1.6605,1795.7,1795.6,7.22243]
[1746417680553,3.2078,1795.9,1795.8,1.11365]
[1746417681156,4.32139,1795.9,1795.8,1.11365]
[1746417681365,5.92669,1795.9,1795.8,1.11365]
[1746417684463,2.71889,1795.9,1795.8,1.11365]
[1746417686865,2.71889,1795.9,1795.7,2.73696]
[1746417687368,1.11365,1795.8,1795.7,2.73696]
[1746417687561,2.70705,1795.8,1795.6,5.51543]
[1746417687763,3.56415,1795.8,1795.6,5.51543]
[1746417687967,1.5934,1795.7,1795.6,7.26033]
[1746417689871,2.70711,1795.7,1795.6,7.26033]
[1746417690466,1.5934,1795.7,1795.6,7.26033]
[1746417692373,2.70711,1795.7,1795.6,7.26033]
[1746417692667,1.5934,1795.7,1795.6,7.26033]
[1746417693973,1.11363,1795.9,1795.6,6.1466]
[1746417694165,2.80073,1795.9,1795.8,1.11365]
[1746417695964,2.80073,1795.9,1795.7,2.72917]
[1746417696571,2.80073,1795.9,1795.8,1.11365]
[1746417697269,2.80073,1795.9,1795.7,1.6155]
[1746417697471,1.6871,1795.9,1795.8,1.11365]
[1746417697772,1.6871,1795.9,1795.8,1.91425]
[1746417698070,1.11357,1796.0,1795.9,1.11359]
[1746417698270,1.11357,1796.0,1795.9,3.66029]
[1746417698972,3.2078,1796.2,1796.1,1.11346]
[1746417699275,4.4731,1796.4,1796.2,1.11335]
[1746417699773,4.4731,1796.4,1796.2,3.48625]
[1746417700074,1.6834,1796.3,1796.2,3.48625]
[1746417700374,3.732,1796.4,1796.3,1.11334]
[1746417700573,3.732,1796.4,1796.3,2.69604]
[1746417702375,5.3909,1796.4,1796.3,2.69604]
[1746417703578,6.50418,1796.4,1796.3,2.69604]
[1746417704078,5.3909,1796.4,1796.3,2.69604]
[1746417708979,3.732,1796.4,1796.3,2.69604]
[1746417709783,3.732,1796.4,1796.3,5.90384]
[1746417711175,2.83064,1796.8,1796.7,1.11309]
[1746417711989,1.7176,1796.8,1796.7,1.11309]
[1746417712286,5.4496,1796.8,1796.7,2.79509]
[1746417712486,5.4496,1796.8,1796.7,3.58839]
[1746417712688,6.56263,1796.8,1796.7,3.58839]
[1746417713385,3.732,1796.8,1796.7,3.58839]
[1746417713783,4.84503,1796.8,1796.7,3.58839]
[1746417714090,4.84503,1796.8,1796.7,2.4753]
[1746417714289,3.732,1796.8,1796.7,1.11309]
[1746417714489,4.84506,1796.8,1796.7,1.11309]
[1746417715190,4.84506,1796.8,1796.7,3.49809]
[1746417716386,4.84506,1796.8,1796.7,2.385]
[1746417717091,1.11309,1796.7,1796.6,4.66315]
[1746417717389,4.44819,1796.7,1796.6,4.66315]
[1746417718091,8.18019,1796.7,1796.6,4.66315]
[1746417718288,8.18019,1796.7,1796.6,3.55]
[1746417718594,15.2749,1796.7,1796.3,3.552]
[1746417718893,1.11328,1796.4,1796.3,3.552]
[1746417719588,1.1134,1796.2,1796.1,3.2078]
[1746417720188,6.475,1796.2,1796.1,3.2078]
[1746417721293,2.743,1796.2,1796.1,3.2078]
[1746417721494,1.11346,1796.1,1796.0,3.552]
[1746417721686,3.61056,1796.1,1796.0,3.552]
[1746417724289,6.81836,1796.1,1796.0,3.552]
[1746417726199,9.4369,1796.1,1795.7,5.9648]
[1746417726405,1.7348,1796.0,1795.7,5.9648]
[1746417726602,1.11365,1795.8,1795.7,5.9648]
[1746417727390,2.84845,1795.8,1795.7,5.9648]
[1746417728703,1.11384,1795.5,1795.4,6.7598]
[1746417728903,2.5679,1795.7,1795.4,8.3924]
[1746417729203,2.85222,1795.6,1795.4,9.5063]
[1746417729402,1.7384,1795.5,1795.4,9.5063]
[1746417729702,2.85224,1795.5,1795.4,8.3924]
[1746417729901,1.7384,1795.5,1795.4,9.5063]
[1746417730094,4.0744,1795.9,1795.4,13.3924]
[1746417730302,6.05979,1795.9,1795.8,1.11365]
[1746417730501,6.05979,1795.9,1795.7,4.66666]
[1746417730699,6.05979,1795.9,1795.8,3.2671]
[1746417731201,4.32139,1795.9,1795.8,3.2671]
[1746417733606,4.32139,1795.9,1795.8,4.38075]
[1746417734306,3.2078,1795.9,1795.8,4.38075]
[1746417734906,1.1135,1796.1,1795.9,1.11359]
[1746417735106,1.1135,1796.1,1795.9,2.76069]
[1746417735407,2.6855,1796.1,1795.9,2.76069]
[1746417735603,2.6855,1796.1,1796.0,1.6471]
[1746417736606,1.11353,1796.0,1795.8,2.7481]
[1746417736806,2.68553,1796.0,1795.8,4.3952]
[1746417737211,2.68553,1796.0,1795.9,1.11359]
[1746417737403,2.68553,1796.0,1795.8,4.3952]
[1746417738109,2.68553,1796.0,1795.9,1.11359]
[1746417738411,2.68553,1796.0,1795.9,2.79159]
[1746417739913,4.8643,1796.3,1796.0,1.11353]
[1746417740202,1.11346,1796.1,1796.0,6.34453]
[1746417740509,2.74345,1796.2,1796.1,1.11346]
[1746417740709,2.74345,1796.2,1796.1,3.3549]
[1746417740903,2.74345,1796.2,1796.1,1.6769]
[1746417742510,1.63,1796.2,1796.1,2.79036]
[1746417742709,6.93731,1796.4,1796.1,3.2876]
[1746417742903,5.94346,1796.5,1796.3,1.11334]
[1746417743098,1.11317,1796.6,1796.4,1.93298]
[1746417743308,2.73553,1796.7,1796.5,1.95261]
[1746417743510,2.73553,1796.7,1796.6,1.6107]
[1746417744110,6.46753,1796.7,1796.6,1.6107]
[1746417744610,1.11315,1796.6,1796.5,0.8394]
[1746417744810,2.84505,1796.6,1796.5,2.5785]
[1746417745112,6.57705,1796.6,1796.5,2.5785]
[1746417745611,5.4639,1796.6,1796.5,3.69172]
[1746417746109,6.57705,1796.6,1796.5,3.69172]
[1746417746311,6.57705,1796.6,1796.5,2.5785]
[1746417750614,6.57705,1796.6,1796.5,3.69172]
[1746417751708,3.732,1796.6,1796.5,3.69172]
[1746417755414,3.732,1796.6,1796.5,6.89952]
[1746417757518,3.732,1796.6,1796.5,11.89952]
[1746417758219,3.732,1796.6,1796.5,6.89952]
[1746417758420,3.732,1796.6,1796.5,11.89952]
[1746417759115,1.7333,1797.0,1796.9,1.11297]
[1746417759313,1.7333,1797.0,1796.9,4.67497]
[1746417759911,2.84621,1797.0,1796.9,4.67497]
[1746417760114,2.84621,1797.0,1796.9,6.31417]
[1746417760317,6.57821,1797.0,1796.9,6.31417]
[1746417761620,6.57821,1797.0,1796.9,5.2012]
[1746417761811,6.57821,1797.0,1796.9,3.562]
[1746417762015,11.57821,1797.0,1796.9,3.562]
[1746417763414,1.11303,1796.8,1796.7,3.2078]
[1746417764111,4.84503,1796.8,1796.7,3.2078]
[1746417764321,6.54833,1796.8,1796.7,3.2078]
[1746417764814,2.78277,1796.7,1796.3,3.561]
[1746417765015,1.11325,1796.5,1796.3,3.561]
[1746417765219,1.11325,1796.5,1796.4,1.11328]
[1746417765518,4.4593,1796.6,1796.4,1.11328]
[1746417765719,1.7264,1796.5,1796.4,1.11328]
[1746417766020,1.7264,1796.5,1796.4,3.48138]
[1746417766218,5.4584,1796.5,1796.4,4.34828]
[1746417767317,6.57162,1796.5,1796.4,4.34828]
[1746417767619,6.57162,1796.5,1796.4,3.235]
[1746417768921,6.57162,1796.5,1796.4,4.34828]
[1746417772915,1.11328,1796.4,1796.3,4.67432]
[1746417773115,6.42278,1796.4,1796.3,5.52232]
[1746417773516,5.3095,1796.4,1796.3,5.52232]
[1746417773714,6.42278,1796.4,1796.3,5.52232]
[1746417773915,6.42278,1796.4,1796.3,3.561]
[1746417774119,1.11334,1796.3,1796.2,3.562]
[1746417774321,4.32024,1796.3,1796.2,3.562]
[1746417775125,8.05224,1796.3,1796.2,3.562]
[1746417775329,11.26004,1796.3,1796.2,3.562]
[1746417776320,11.26004,1796.3,1795.9,3.562]
[1746417776321,1.11357,1796.0,1795.9,3.562]
[1746417783434,1.11357,1796.0,1795.9,4.67559]
[1746417783729,1.11351,1796.1,1795.9,4.67559]
[1746417783930,1.11351,1796.1,1795.9,6.29079]
[1746417785532,1.11353,1796.0,1795.9,5.1772]
[1746417788735,1.11353,1796.0,1795.9,6.29079]
[1746417789030,1.11348,1796.1,1796.0,1.11353]
[1746417789233,1.11346,1796.1,1796.0,4.47913]
[1746417789427,2.81365,1796.2,1796.0,4.47913]
[1746417789627,2.81365,1796.2,1796.1,1.7308]
[1746417795539,1.11353,1796.0,1795.9,3.562]
[1746417796141,3.54543,1796.0,1795.9,3.562]
[1746417797247,4.32131,1796.1,1795.9,4.67559]
[1746417797434,4.32131,1796.1,1796.0,0.8304]
[1746417797635,4.32131,1796.1,1796.0,2.4339]
[1746417798241,1.11353,1796.0,1795.9,4.4283]
[1746417798943,2.71103,1796.0,1795.9,6.0318]
[1746417799245,2.71103,1796.0,1795.9,6.8842]
[1746417802543,2.71103,1796.0,1795.9,7.99779]
[1746417803145,1.5975,1796.0,1795.9,7.99779]
[1746417803344,1.11351,1796.1,1795.9,7.99779]
[1746417803546,1.11351,1796.1,1796.0,1.6397]
[1746417803945,2.71895,1796.2,1796.0,1.6397]
[1746417804136,10.7066,1796.4,1796.0,1.6397]
[1746417804341,1.11336,1796.3,1796.2,1.1134]
[1746417804543,1.11334,1796.3,1796.2,3.5515]
[1746417805149,4.84534,1796.3,1796.2,3.5515]
[1746417805350,3.732,1796.3,1796.2,3.5515]
[1746417806851,4.84534,1796.3,1796.2,3.5515]
[1746417807150,4.84534,1796.3,1796.2,2.4381]
[1746417807748,1.11353,1796.0,1795.9,3.562]
[1746417808346,2.69101,1796.1,1795.9,5.2523]
[1746417808547,1.11344,1796.2,1796.0,3.66483]
[1746417808850,1.11344,1796.2,1796.1,1.6903]
[1746417809452,7.4015,1796.3,1796.1,2.80376]
[1746417809650,1.1134,1796.2,1796.1,2.80376]
[1746417810153,1.1134,1796.2,1796.1,1.6903]
[1746417810954,8.51488,1796.3,1796.1,2.80373]
[1746417811254,6.93738,1796.3,1796.1,2.80373]
[1746417811448,6.93738,1796.3,1796.2,1.6717]
[1746417811854,1.11338,1796.3,1796.2,1.6717]
[1746417812152,4.84538,1796.3,1796.2,1.6717]
[1746417814254,3.732,1796.3,1796.2,2.7851]
[1746417814456,4.84534,1796.3,1796.2,2.7851]
[1746417814954,4.84534,1796.3,1796.2,1.6717]
[1746417816254,6.56794,1796.3,1796.2,1.6717]
[1746417820559,5.4546,1796.3,1796.2,2.7851]
[1746417820747,6.56794,1796.3,1796.2,2.7851]
[1746417820951,6.56794,1796.3,1796.2,1.6717]
[1746417822762,6.56794,1796.3,1796.2,2.4782]
[1746417823260,6.56794,1796.3,1796.2,3.5916]
[1746417823460,5.4546,1796.3,1796.2,3.5916]
[1746417825060,6.56794,1796.3,1796.2,3.5916]
[1746417825260,5.4546,1796.3,1796.2,3.5916]
[1746417825562,6.56794,1796.3,1796.2,2.4782]
[1746417826563,6.56794,1796.3,1796.2,3.5916]
[1746417828061,5.4546,1796.3,1796.2,3.5916]
[1746417828462,6.56794,1796.3,1796.2,2.4782]
[1746417828762,6.56794,1796.3,1796.2,3.5916]
[1746417829663,6.56794,1796.3,1796.2,2.4782]
[1746417830759,6.56794,1796.3,1796.2,3.5916]
[1746417832763,6.56794,1796.3,1796.2,2.4782]
[1746417832966,6.56794,1796.3,1796.2,3.5916]
[1746417833768,5.4546,1796.3,1796.2,3.5916]
[1746417834169,6.56794,1796.3,1796.2,3.5916]
[1746417834865,5.4546,1796.3,1796.2,3.5916]
[1746417835369,6.56794,1796.3,1796.2,3.5916]
[1746417840582,6.56794,1796.3,1796.2,7.1586]
[1746417840769,5.4546,1796.3,1796.2,7.1586]
[1746417841381,6.56794,1796.3,1796.2,7.1586]
[1746417843481,5.4546,1796.3,1796.2,7.1586]
[1746417844875,3.732,1796.3,1796.2,7.1586]
[1746417845076,3.732,1796.3,1796.2,10.3664]
[1746417850778,3.732,1796.3,1796.2,7.1586]
[1746417850975,3.732,1796.3,1796.2,10.3664]
[1746417851981,3.732,1796.3,1796.2,7.1586]
[1746417852187,3.732,1796.3,1796.2,10.3664]
[1746417852585,3.732,1796.3,1796.2,17.80671961]
[1746417855591,3.732,1796.3,1796.2,10.3664]
[1746417856076,1.59,1796.7,1796.2,15.3664]
[1746417856385,0.8155,1796.8,1796.6,1.11315]
[1746417856586,0.8155,1796.8,1796.7,7.93919]
[1746417856788,1.59,1796.9,1796.8,1.11303]
[1746417857188,5.322,1796.9,1796.8,2.82263]
[1746417858294,6.43497,1796.9,1796.8,2.82263]
[1746417859389,6.43497,1796.9,1796.8,1.11303]
[1746417860793,5.322,1796.9,1796.8,1.11303]
[1746417861791,6.43497,1796.9,1796.8,1.11303]
[1746417863192,5.322,1796.9,1796.8,1.11303]
[1746417864491,6.43497,1796.9,1796.8,1.11303]
[1746417865598,5.322,1796.9,1796.8,1.11303]
[1746417866390,6.43497,1796.9,1796.8,1.11303]
[1746417867093,5.322,1796.9,1796.8,1.11303]
[1746417867289,3.732,1796.9,1796.8,1.11303]
[1746417867492,3.732,1796.9,1796.8,2.75453]
[1746417868189,3.732,1797.1,1797.0,1.11291]
[1746417868392,3.732,1797.1,1797.0,4.65691]
[1746417868798,3.732,1797.1,1797.0,6.27911]
[1746417869093,3.732,1797.1,1797.0,7.92061]
[1746417870507,5.3784,1797.1,1797.0,4.65691]
[1746417873001,5.3784,1797.1,1797.0,6.27391]
[1746417876806,3.732,1797.1,1797.0,6.27391]
[1746417877309,3.732,1797.1,1797.0,4.64991]
[1746417879109,3.732,1797.1,1797.0,6.30121]
[1746417879705,5.3254,1797.1,1797.0,6.30121]
[1746417880809,5.3254,1797.1,1797.0,4.64991]
[1746417884913,3.732,1797.1,1797.0,6.22951]
[1746417886219,4.52691,1797.5,1797.4,1.11266]
[1746417886515,4.52691,1797.5,1797.4,4.64966]
[1746417886918,4.52691,1797.5,1797.4,3.537]
[1746417887119,8.25891,1797.5,1797.4,3.537]
[1746417887817,8.25891,1797.5,1797.4,4.64966]
[1746417888906,7.1463,1797.5,1797.4,4.64966]
[1746417889319,8.2589,1797.5,1797.4,4.64966]
[1746417889717,7.1463,1797.5,1797.4,4.64966]
[1746417890415,8.2589,1797.5,1797.4,4.64966]
[1746417890811,8.2589,1797.5,1797.4,3.537]
[1746417891711,13.2589,1797.5,1797.4,3.537]
[1746417892721,8.2589,1797.5,1797.4,3.537]
[1746417898920,1.11278,1797.2,1797.1,4.64981]
[1746417899124,3.732,1797.2,1797.1,4.64981]
[1746417899516,5.3727,1797.2,1797.1,4.64981]
[1746417900825,6.48548,1797.2,1797.1,4.64981]
[1746417901124,6.48548,1797.2,1797.1,4.64984]
[1746417902228,5.3727,1797.2,1797.1,4.64984]
[1746417902427,5.3727,1797.2,1797.1,6.37364]
[1746417904522,3.732,1797.2,1797.1,6.37364]
[1746417912733,3.732,1797.2,1797.1,9.58144]
[1746417916841,3.732,1797.2,1797.1,6.37364]
[1746417917736,3.732,1797.2,1797.1,9.58144]